Workbook

Sheet MSU
B1: Keijo Saarenmaa | E1: 22.4.1983 Alajärvi
B2: SUPERPESIS | E2: Runkosarja | I2: Kärkilyönnit (KL), pesänvälit | P2: Ylempi loppusarja | W2: Alempi loppusarja | AD2: Arvo-ottelut | AH2: Mitalit
B3: Vuosi | C3: Sija | D3: Seura | E3: OTT | F3: KUN | G3: LÖI | H3: TOI | I3: KL | J3: 0 > 1 | K3: 1 > 2 | L3: 2 > 3 | M3: 3 > k | N3: KL-% | P3: OTT | Q3: KUN | R3: LÖI | S3: TOI | T3: KL | U3: KL-% | W3: OTT | X3: KUN | Y3: LÖI | Z3: TOI | AA3: KL | AB3: KL-% | AD3: IL | AE3: LL | AF3: hSM | AG3: K | AH3: H | AI3: P
B4: 2001 | C4: 7. | D4: KuKu | F4: suomensarja
B5: 2002 | C5: 8. | D5: KuKu | F5: suomensarja
B6: 2003 | C6: 5. | D6: AA | F6: ykköspesis
B7: 2004 | C7: 2. | D7: AA | F7: ykköspesis | W7: 2 | X7: 0 | Y7: 0 | Z7: 0 | AA7: 2 | AB7: 22.2 %
B8: 2005 | C8: 10. | D8: VM | F8: ykköspesis
B9: 2006 | C9: 5. | D9: VM | F9: ykköspesis
B10: 2007 | C10: 11. | D10: AA | F10: ykköspesis
B11: 2008 | C11: 11. | D11: VM | F11: ykköspesis
B12: 2009 | C12: 1. | D12: VM | F12: suomensarja
B13: 2010 | C13: 3. | D13: VM | F13: ykköspesis
B14: 2011 | C14: 4. | D14: SMJ | F14: ykköspesis
B15: 2012 | C15: 1. | D15: VM | F15: suomensarja
B16: 2012 | C16: 11. | D16: NJ | E16: 1 | F16: 0 | G16: 0 | H16: 0 | I16: 3 | J16: 2 | K16: 1 | L16: 0 | M16: 0 | N16: 42.9 % | O16: =PRODUCT(I16/N16) -> 6.993006993 | V16: =PRODUCT(P16/U16) ->  | AC16: =PRODUCT(W16/AB16) -> 
B17: 2013 | C17: 2. | D17: VM | F17: suomensarja
B18: 2014 | C18: 3. | D18: VM | F18: suomensarja
B19: 2015 | C19: 2. | D19: VM | F19: suomensarja
B20: 2016 | C20: 1. | D20: VäVi | F20: suomensarja
B21: 2017 | C21: 11. | D21: VäVi | F21: ykköspesis
B22: 2018 | V22: =PRODUCT(P22/U22) ->  | AC22: =PRODUCT(W22/AB22) -> 
B23: 2019 | C23: 6. | D23: YKV | F23: suomensarja
B24: 2020 | C24: 3. | D24: YKV | F24: suomensarja
B25: 2021 | C25: 3. | D25: Luja | F25: suomensarja
B26: 2022 | C26: 3. | D26: VM Jun | F26: suomensarja
B27: 2022 | C27: 6. | D27: VM Jun | F27: suomensarja
B28: Yhteensä | E28: =SUM(E15:E27) -> 1 | F28: =SUM(F15:F27) -> 0 | G28: 0 | H28: 0 | I28: 3 | J28: 2 | K28: 1 | L28: 0 | M28: 0 | N28: =PRODUCT(I28/O28) -> 42.9 % | O28: =SUM(O15:O27) -> 6.993006993 | P28: 0 | Q28: 0 | R28: 0 | S28: 0 | T28: 0 | U28: =PRODUCT(P28/W28) -> 0.0 % | V28: =SUM(V15:V27) ->  | W28: 2 | X28: 0 | Y28: 0 | Z28: 0 | AA28: 2 | AB28: 22.2 % | AC28: =SUM(AC15:AC27) ->  | AD28: 0 | AE28: 0 | AF28: 0 | AG28: 0 | AH28: 0 | AI28: 0
B29: Pesispörssi | D29: =SUM(F28:H28)+((I28-F28-G28)/3)+(E28/3)+(AD28*25)+(AE28*25)+(AF28*10)+(AG28*25)+(AH28*20)+(AI28*15) -> 1.3
B31: URA SUPERISSA | E31: OTT | F31: KUN | G31: LÖI | H31: TOI | I31: KL | K31: ka/L | L31: ka/T | M31: ka/KL | N31: KL-% | P31: ENSIMMÄISET RUNKOSARJASSA
B32: Runkosarja | E32: =PRODUCT(E28) -> 1 | F32: =PRODUCT(F28) -> 0 | G32: =PRODUCT(G28) -> 0 | H32: =PRODUCT(H28) -> 0 | I32: =PRODUCT(I28) -> 3 | K32: =PRODUCT((F32+G32)/E32) -> 0.00 | L32: =PRODUCT(H32/E32) -> 0.00 | M32: =PRODUCT(I32/E32) -> 3.00 | N32: =PRODUCT(N28) -> 42.9 % | O32: =PRODUCT(O28) -> 6.993006993 | P32: Ottelu | R32: 22.05. 2012 NJ - KoU 0-2 (0-7, 0-1) | Z32: 1. ottelu | AB32: 29 v 1 kk 0 pv
B33: Ylempi loppusarja | O33: 0 | P33: Lyöty
B34: Alempi loppusarja | E34: 2 | F34: 0 | G34: 0 | H34: 0 | I34: 2 | K34: 0.00 | L34: 0.00 | M34: 1.00 | N34: 22.2 % | O34: 9 | P34: Tuotu
B35: KAIKKI | E35: =SUM(E32:E34) -> 3 | F35: =SUM(F32:F34) -> 0 | G35: =SUM(G32:G34) -> 0 | H35: =SUM(H32:H34) -> 0 | I35: =SUM(I32:I34) -> 5 | K35: 0.00 | L35: 0.00 | M35: 1.00 | N35: =PRODUCT(I35/O35) -> 31.3 % | O35: =SUM(O32:O34) -> 15.99300699 | P35: Kunnari
B37: Seurat | D37: AA = Alajärven Ankkurit (1944), kasvattajaseura | M37: SMJ = Seinäjoen Maila-Jussit (1932) | U37: Luja = Laihian Luja (1996)
D38: KuKu = Kuortaneen Kunto (1921) | M38: VäVi = Vähänkyrön Viesti (1938) | U38: VM Jun = Vaasan Mailan Juniorit (1993)
D39: VM = Vaasan Maila (1933) | M39: YKV = Ylistaron Kilpa-Veljet (1945)

Sheet MYP, MSS
B1: Keijo Saarenmaa | E1: 22.4.1983 Alajärvi
B2: YKKÖSPESIS | E2: Runkosarja | L2: Runkosarja TOP-10 | Q2: Jatkosarjat | X2: SUOMENSARJA | AA2: Runkosarja | AH2: Runkosarja TOP-10 | AM2: Jatkosarjat
B3: Vuosi | C3: Sija | D3: Seura | E3: OTT | F3: KUN | G3: LÖI | H3: TOI | I3: KL | J3: KL-% | L3: LÖI | M3: TOI | N3: L+T | O3: KL | Q3: OTT | R3: KUN | S3: LÖI | T3: TOI | U3: KL | V3: KL-% | X3: Vuosi | Y3: Sija | Z3: Seura | AA3: OTT | AB3: KUN | AC3: LÖI | AD3: TOI | AE3: KL | AF3: KL-% | AH3: LÖI | AI3: TOI | AJ3: L+T | AK3: KL | AM3: OTT | AN3: KUN | AO3: LÖI | AP3: TOI | AQ3: KL | AR3: KL-%
X4: 2001 | Y4: 7. | Z4: KuKu | AA4: 8 | AB4: 0 | AC4: 4 | AD4: 11 | AE4: 30 | AF4: 61.2 % | AG4: 49
X5: 2002 | Y5: 8. | Z5: KuKu | AA5: 4 | AB5: 0 | AC5: 1 | AD5: 3 | AE5: 19 | AF5: 67.9 % | AG5: 28
B6: 2003 | C6: 5. | D6: AA | E6: 4 | F6: 0 | G6: 1 | H6: 4 | I6: 9 | J6: 60.0 % | K6: 15
B7: 2004 | C7: 2. | D7: AA | E7: 14 | F7: 1 | G7: 4 | H7: 11 | I7: 40 | J7: 62.5 % | K7: 64
B8: 2005 | C8: 10. | D8: VM | E8: 22 | F8: 1 | G8: 1 | H8: 23 | I8: 113 | J8: 71.1 % | K8: 159
B9: 2006 | C9: 5. | D9: VM | E9: 21 | F9: 2 | G9: 2 | H9: 24 | I9: 107 | J9: 68.2 % | K9: 157 | Q9: 2 | R9: 0 | S9: 0 | T9: 3 | U9: 11 | V9: 68.8 % | W9: 16
B10: 2007 | C10: 11. | D10: AA | E10: 21 | F10: 1 | G10: 6 | H10: 16 | I10: 87 | J10: 62.6 % | K10: 139 | Q10: 5 | R10: 0 | S10: 1 | T10: 8 | U10: 20 | V10: 62.5 % | W10: 32
B11: 2008 | C11: 11. | D11: VM | E11: 20 | F11: 0 | G11: 1 | H11: 15 | I11: 72 | J11: 54.5 % | K11: 132 | Q11: 2 | R11: 0 | S11: 0 | T11: 3 | U11: 11 | V11: 84.6 % | W11: 13
X12: 2009 | Y12: 1. | Z12: VM | AA12: 18 | AB12: 6 | AC12: 14 | AD12: 58 | AE12: 124 | AF12: 78.5 % | AG12: 158 | AI12: 1. | AJ12: 2. | AK12: 2. | AM12: 6 | AN12: 0 | AO12: 2 | AP12: 19 | AQ12: 27 | AR12: 67.5 % | AS12: 40
B13: 2010 | C13: 3. | D13: VM | E13: 22 | F13: 3 | G13: 4 | H13: 39 | I13: 112 | J13: 74.7 % | K13: 150 | M13: 7. | Q13: 4 | R13: 0 | S13: 0 | T13: 3 | U13: 20 | V13: 64.5 % | W13: 31
B14: 2011 | C14: 4. | D14: SMJ | E14: 22 | F14: 1 | G14: 2 | H14: 44 | I14: 110 | J14: 68.8 % | K14: 160 | M14: 2. | Q14: 5 | R14: 0 | S14: 0 | T14: 9 | U14: 28 | V14: 71.8 % | W14: 39
X15: 2012 | Y15: 1. | Z15: VM | AA15: 16 | AB15: 5 | AC15: 10 | AD15: 52 | AE15: 114 | AF15: 83.2 % | AG15: 137 | AI15: 1. | AJ15: 4. | AK15: 2. | AM15: 8 | AN15: 1 | AO15: 1 | AP15: 12 | AQ15: 44 | AR15: 74.6 % | AS15: 59
X16: 2013 | Y16: 2. | Z16: VM | AA16: 19 | AB16: 3 | AC16: 13 | AD16: 54 | AE16: 124 | AF16: 79.0 % | AG16: 157 | AI16: 2. | AJ16: 5. | AK16: 4. | AM16: 5 | AN16: 0 | AO16: 0 | AP16: 10 | AQ16: 22 | AR16: 56.4 % | AS16: 39
X17: 2014 | Y17: 3. | Z17: VM | AA17: 19 | AB17: 1 | AC17: 11 | AD17: 55 | AE17: 107 | AF17: 79.9 % | AG17: 134 | AI17: 1. | AJ17: 4. | AK17: 7. | AM17: 2 | AN17: 0 | AO17: 0 | AP17: 3 | AQ17: 11 | AR17: 55.0 % | AS17: 20
X18: 2015 | Y18: 2. | Z18: VM | AA18: 16 | AB18: 0 | AC18: 8 | AD18: 49 | AE18: 90 | AF18: 80.4 % | AG18: 112 | AI18: 1. | AJ18: 3. | AK18: 6. | AM18: 6 | AN18: 1 | AO18: 4 | AP18: 6 | AQ18: 21 | AR18: 75.0 % | AS18: 42
X19: 2016 | Y19: 1. | Z19: VäVi | AA19: 16 | AB19: 1 | AC19: 6 | AD19: 44 | AE19: 105 | AF19: 80.2 % | AG19: 131 | AI19: 2. | AJ19: 7. | AK19: 2. | AM19: 6 | AN19: 0 | AO19: 1 | AP19: 10 | AQ19: 29 | AR19: 64.4 % | AS19: 45
B20: 2017 | C20: 11. | D20: VäVi | E20: 16 | F20: 0 | G20: 4 | H20: 20 | I20: 77 | J20: 64.7 % | K20: 119 | Q20: 1 | R20: 0 | S20: 0 | T20: 1 | U20: 2 | V20: 28.6 % | W20: 7
X21: 2018 | Y21: 7. | Z21: VM | AA21: 13 | AB21: 2 | AC21: 7 | AD21: 32 | AE21: 87 | AF21: 76.3 % | AG21: =PRODUCT(AE21/AF21) -> 114 | AI21: 9. | AK21: 9.
X22: 2019 | Y22: 6. | Z22: YKV | AA22: 7 | AB22: 0 | AC22: 0 | AD22: 14 | AE22: 37 | AF22: 80.4 % | AG22: 46
X23: 2020 | Y23: 3. | Z23: YKV | AA23: 7 | AB23: 0 | AC23: 2 | AD23: 12 | AE23: 29 | AF23: 82.9 % | AG23: 35
X24: 2021 | Y24: 3. | Z24: Luja | AA24: 16 | AB24: 1 | AC24: 5 | AD24: 34 | AE24: 108 | AF24: 75.0 % | AG24: 144 | AI24: 5. | AK24: 2. | AM24: 2 | AN24: 0 | AO24: 0 | AP24: 1 | AQ24: 13 | AR24: 81.3 % | AS24: 16
X25: 2022 | Y25: 3. | Z25: VM Jun | AA25: 13 | AB25: 0 | AC25: 3 | AD25: 18 | AE25: 66 | AF25: 74.2 % | AG25: 89
X26: 2023 | Y26: 6. | Z26: VM Jun | AA26: 3 | AB26: 0 | AC26: 1 | AD26: 1 | AE26: 11 | AF26: 68.8 % | AG26: 16
B27: YHTEENSÄ | E27: =SUM(E4:E26) -> 162 | F27: =SUM(F4:F26) -> 9 | G27: =SUM(G4:G26) -> 25 | H27: =SUM(H4:H26) -> 196 | I27: =SUM(I4:I26) -> 727 | J27: =PRODUCT(I27/K27) -> 66.4 % | K27: =SUM(K4:K26) -> 1095 | Q27: =SUM(Q4:Q26) -> 19 | R27: =SUM(R4:R26) -> 0 | S27: =SUM(S4:S26) -> 1 | T27: =SUM(T4:T26) -> 27 | U27: =SUM(U4:U26) -> 92 | V27: =PRODUCT(U27/W27) -> 66.7 % | W27: =SUM(W4:W26) -> 138 | X27: YHTEENSÄ | AA27: =SUM(AA4:AA26) -> 175 | AB27: =SUM(AB4:AB26) -> 19 | AC27: =SUM(AC4:AC26) -> 85 | AD27: =SUM(AD4:AD26) -> 437 | AE27: =SUM(AE4:AE26) -> 1051 | AF27: =PRODUCT(AE27/AG27) -> 77.9 % | AG27: =SUM(AG4:AG26) -> 1350.008649 | AM27: =SUM(AM4:AM26) -> 35 | AN27: =SUM(AN4:AN26) -> 2 | AO27: =SUM(AO4:AO26) -> 8 | AP27: =SUM(AP4:AP26) -> 61 | AQ27: =SUM(AQ4:AQ26) -> 167 | AR27: =PRODUCT(AQ27/AS27) -> 64.0 % | AS27: =SUM(AS4:AS26) -> 261
B29: KAIKKI OTTELUT | E29: OTT | F29: KUN | G29: LÖI | H29: TOI | I29: KL | J29: KL-% | L29: ka/L | M29: ka/T | N29: ka/l+t | O29: ka/kl | R29: Seurat | T29: AA = Alajärven Ankkurit (1944), kasvattajaseura | AD29: VäVi = Vähänkyrön Viesti (1938)
B30: SUPERPESIS | E30: 3 | F30: 0 | G30: 0 | H30: 0 | I30: 5 | J30: 31.3 % | K30: =PRODUCT(I30/J30) -> 15.97444089 | L30: =PRODUCT((F30+G30)/E30) -> 0.00 | M30: =PRODUCT(H30/E30) -> 0.00 | N30: =PRODUCT((F30+G30+H30)/E30) -> 0.00 | O30: =PRODUCT(I30/E30) -> 1.67 | T30: KuKu = Kuortaneen Kunto (1921) | AD30: YKV = Ylistaron Kilpa-Veljet (1945)
B31: YKKÖSPESIS | E31: =PRODUCT(E27+Q27) -> 181 | F31: =PRODUCT(F27+R27) -> 9 | G31: =PRODUCT(G27+S27) -> 26 | H31: =PRODUCT(H27+T27) -> 223 | I31: =PRODUCT(I27+U27) -> 819 | J31: =PRODUCT(I31/K31) -> 66.4 % | K31: =PRODUCT(K27+W27) -> 1233 | L31: =PRODUCT((F31+G31)/E31) -> 0.19 | M31: =PRODUCT(H31/E31) -> 1.23 | N31: =PRODUCT((F31+G31+H31)/E31) -> 1.43 | O31: =PRODUCT(I31/E31) -> 4.52 | T31: VM = Vaasan Maila (1933) | AD31: Luja = Laihian Luja (1996)
B32: SUOMENSARJA | E32: =PRODUCT(AA27+AM27) -> 210 | F32: =PRODUCT(AB27+AN27) -> 21 | G32: =PRODUCT(AC27+AO27) -> 93 | H32: =PRODUCT(AD27+AP27) -> 498 | I32: =PRODUCT(AE27+AQ27) -> 1218 | J32: =PRODUCT(I32/K32) -> 75.6 % | K32: =PRODUCT(AG27+AS27) -> 1611.008649 | L32: =PRODUCT((F32+G32)/E32) -> 0.54 | M32: =PRODUCT(H32/E32) -> 2.37 | N32: =PRODUCT((F32+G32+H32)/E32) -> 2.91 | O32: =PRODUCT(I32/E32) -> 5.80 | T32: SMJ = Seinäjoen Maila-Jussit (1932) | AD32: VM Jun = Vaasan Mailan Juniorit (1993)
B33: YHTEENSÄ | E33: =SUM(E30:E32) -> 394 | F33: =SUM(F30:F32) -> 30 | G33: 119 | H33: 721 | I33: 2042 | J33: =PRODUCT(I33/K33) -> 71.4 % | K33: =SUM(K30:K32) -> 2859.98309 | L33: =PRODUCT((F33+G33)/E33) -> 0.38 | M33: =PRODUCT(H33/E33) -> 1.83 | N33: =PRODUCT((F33+G33+H33)/E33) -> 2.21 | O33: =PRODUCT(I33/E33) -> 5.18
